bitfinex/quotes_BTCUSD_20240605
["timestamp","ask_amount","ask_price","bid_price","bid_amount"]
[1717606223797,0.009504,71371.0,71368.0,0.56561501]
[1717606224007,0.009504,71371.0,71368.0,1.06641173]
[1717606224211,0.009504,71371.0,71368.0,1.34664873]
[1717606224427,0.009504,71371.0,71368.0,1.3856275]
[1717606225039,0.009504,71371.0,71368.0,1.34036749]
[1717606225249,0.009504,71371.0,71368.0,1.3856275]
[1717606225669,0.009504,71371.0,71368.0,1.81028343]
[1717606225848,0.009504,71371.0,71368.0,1.83938343]
[1717606226311,0.009504,71371.0,71370.0,1.22606101]
[1717606226518,0.009504,71371.0,71370.0,1.56613514]
[1717606227368,0.004,71379.0,71378.0,0.94575501]
[1717606227572,0.004,71379.0,71378.0,1.43272914]
[1717606228798,0.004,71379.0,71378.0,1.39375037]
[1717606228997,0.004,71379.0,71378.0,1.43272914]
[1717606229223,0.004,71379.0,71378.0,0.86913344]
[1717606229573,0.004,71379.0,71378.0,1.24933144]
[1717606229999,0.004,71379.0,71378.0,1.28831021]
[1717606230586,0.004,71379.0,71378.0,1.43272914]
[1717606231870,0.00405,71379.0,71378.0,1.43272914]
[1717606232313,0.009504,71384.0,71378.0,1.43272914]
[1717606232314,0.008554,71384.0,71383.0,0.84570501]
[1717606232487,0.008554,71384.0,71383.0,1.01836021]
[1717606232884,0.008554,71384.0,71383.0,1.07938144]
[1717606233131,0.008554,71384.0,71383.0,1.24928144]
[1717606233515,0.008554,71384.0,71383.0,1.28826021]
[1717606233727,0.008554,71384.0,71383.0,1.51397914]
[1717606233863,0.0082407,71384.0,71383.0,1.80847743]
[1717606234068,0.0082407,71384.0,71383.0,1.76949866]
[1717606234273,0.0082407,71384.0,71383.0,1.44699943]
[1717606234476,0.0082407,71384.0,71383.0,1.30802066]
[1717606234686,0.0082407,71384.0,71383.0,1.40802066]
[1717606234903,0.0082407,71384.0,71383.0,1.44699943]
[1717606235808,0.0082407,71384.0,71383.0,1.72717743]
[1717606236627,0.0082407,71384.0,71383.0,1.75017743]
[1717606236794,0.0082907,71384.0,71383.0,1.75017743]
[1717606237652,7e-07,71384.0,71383.0,1.73585714]
[1717606242204,7e-07,71384.0,71383.0,1.74146014]
[1717606242422,0.002,71389.0,71388.0,1.22581601]
[1717606242639,0.002,71389.0,71388.0,1.55721043]
[1717606245007,0.002,71389.0,71388.0,1.54289014]
[1717606246933,0.002,71389.0,71388.0,1.54281712]
[1717606247159,0.002,71389.0,71388.0,1.50383835]
[1717606247657,0.002,71389.0,71388.0,1.54281712]
[1717606250755,5e-05,71394.0,71393.0,1.22574601]
[1717606250973,5e-05,71394.0,71393.0,1.57254848]
[1717606251188,5e-05,71394.0,71393.0,1.71696741]
[1717606251409,5e-05,71394.0,71393.0,1.72306741]
[1717606251603,0.004,71399.0,71398.0,1.21567601]
[1717606251861,0.009504,71411.0,71399.0,0.9348746]
[1717606252085,0.009504,71411.0,71400.0,0.93554001]
[1717606252330,1e-08,71403.0,71402.0,0.93552001]
[1717606252583,0.009504,71411.0,71408.0,0.9347876]
[1717606252800,0.009504,71411.0,71408.0,1.43668141]
[1717606253051,0.009504,71411.0,71408.0,1.46578141]
[1717606253929,0.0016867,71409.0,71408.0,1.74586141]
[1717606254543,7e-07,71409.0,71408.0,1.74586141]
[1717606254758,0.004,71419.0,71411.0,0.23526001]
[1717606254977,0.004,71419.0,71411.0,1.27543112]
[1717606255409,0.004,71419.0,71411.0,1.55549912]
[1717606256512,0.004,71419.0,71418.0,0.90638324]
[1717606256715,0.004,71419.0,71418.0,1.44526312]
[1717606257851,0.004,71419.0,71418.0,1.39328435]
[1717606258570,0.004,71419.0,71418.0,1.42226312]
[1717606258779,0.004946,71419.0,71418.0,1.39328435]
[1717606260202,0.004946,71419.0,71418.0,0.86882442]
[1717606260828,0.004946,71419.0,71418.0,1.19328435]
[1717606261033,0.000946,71426.0,71420.0,0.65530901]
[1717606261252,0.000946,71426.0,71420.0,0.89972794]
[1717606261460,0.000946,71426.0,71425.0,0.37526701]
[1717606261623,0.000946,71426.0,71425.0,0.80390623]
[1717606261817,0.000946,71426.0,71425.0,1.43648686]
[1717606262474,0.000946,71426.0,71425.0,1.71650086]
[1717606263215,0.000946,71426.0,71425.0,1.43648686]
[1717606263416,0.000946,71426.0,71425.0,1.47977895]
[1717606263565,0.000946,71426.0,71425.0,1.71650086]
[1717606264096,0.000946,71426.0,71425.0,1.43648686]
[1717606264763,0.000946,71426.0,71425.0,1.71650086]
[1717606265703,0.004,71439.0,71428.0,0.93526501]
[1717606265932,0.004,71439.0,71428.0,1.25223657]
[1717606266099,0.004,71439.0,71428.0,1.55523857]
[1717606266304,0.004,71439.0,71438.0,0.5545316]
[1717606266508,0.004,71439.0,71438.0,0.86867787]
[1717606266712,0.004,71439.0,71438.0,1.17761964]
[1717606267024,0.004,71439.0,71438.0,1.14864087]
[1717606268429,0.004,71439.0,71438.0,1.17761964]
[1717606268854,0.004,71439.0,71438.0,1.14864087]
[1717606270512,0.004,71439.0,71438.0,1.17761964]
[1717606270722,0.004,71439.0,71438.0,1.71632186]
[1717606270955,0.004,71439.0,71438.0,1.52061335]
[1717606271370,0.1593,71445.0,71438.0,1.52061335]
[1717606271371,0.006484,71441.0,71440.0,0.80616824]
[1717606271571,0.006484,71441.0,71440.0,0.97872087]
[1717606271727,0.006484,71441.0,71440.0,0.63411944]
[1717606271931,0.006484,71441.0,71440.0,0.97311204]
[1717606272151,0.006484,71441.0,71440.0,0.97872087]
[1717606272945,0.006484,71441.0,71440.0,0.87872087]
[1717606273145,0.006484,71441.0,71440.0,1.1231398]
[1717606273700,0.160884,71441.0,71440.0,0.87872087]
[1717606273905,0.160884,71441.0,71440.0,0.97872087]
[1717606274043,0.1605707,71441.0,71440.0,0.97872087]
[1717606274252,0.1605707,71441.0,71440.0,0.87872087]
[1717606274586,0.1605707,71441.0,71440.0,0.97872087]
[1717606274794,0.1605707,71441.0,71440.0,0.80616824]
[1717606275003,0.1605707,71441.0,71440.0,0.87309655]
[1717606275229,0.1605707,71441.0,71440.0,0.97309655]
[1717606275585,0.1605707,71441.0,71440.0,0.97870538]
[1717606275788,0.1605707,71441.0,71440.0,0.87870538]
[1717606275991,0.1605707,71441.0,71440.0,0.97870538]
[1717606276537,0.1605707,71441.0,71440.0,0.97870335]
[1717606278087,0.1605707,71441.0,71440.0,0.87870335]
[1717606278298,0.1605707,71441.0,71440.0,0.97870335]
[1717606278519,0.0061707,71441.0,71440.0,0.97870335]
[1717606279404,0.0061707,71441.0,71440.0,0.97309452]
[1717606280094,0.0061707,71441.0,71440.0,0.87309452]
[1717606280322,0.0061707,71441.0,71440.0,0.97309452]
[1717606280546,0.0061707,71441.0,71440.0,0.87309452]
[1717606280767,0.0061707,71441.0,71440.0,0.97309452]
[1717606280986,0.0061707,71441.0,71440.0,0.97870335]
[1717606281203,0.0061707,71441.0,71440.0,1.14860335]
[1717606282307,0.0061707,71441.0,71440.0,1.04860335]
[1717606282522,0.0061707,71441.0,71440.0,1.25740602]
[1717606282941,0.0061707,71441.0,71440.0,1.28638479]
[1717606283160,0.0061707,71441.0,71440.0,1.25740602]
[1717606283847,0.0061707,71441.0,71440.0,0.97184219]
[1717606284254,0.0061707,71441.0,71440.0,0.76303952]
[1717606284465,0.0061707,71441.0,71440.0,0.97184219]
[1717606284696,0.0061707,71441.0,71440.0,0.86303952]
[1717606285048,0.0061707,71441.0,71440.0,1.14299452]
[1717606285274,0.0061707,71441.0,71440.0,1.15740602]
[1717606285490,0.0061707,71441.0,71440.0,1.25740602]
[1717606287703,0.0061707,71441.0,71440.0,1.15740602]
[1717606287871,0.0061707,71441.0,71440.0,1.25740602]
[1717606288282,0.0061707,71441.0,71440.0,1.15740602]
[1717606288490,0.0061707,71441.0,71440.0,1.25740602]
[1717606288685,0.0061707,71441.0,71440.0,1.15740602]
[1717606288888,0.0061707,71441.0,71440.0,1.25740602]
[1717606289795,0.0061707,71441.0,71440.0,0.97184219]
[1717606289997,0.2484707,71441.0,71440.0,0.97184219]
[1717606292687,0.2484707,71441.0,71440.0,1.25740602]
[1717606294575,0.2484707,71441.0,71440.0,0.97184219]
[1717606294943,0.24829216,71441.0,71440.0,1.25740602]
[1717606295145,0.24829216,71441.0,71440.0,1.25741102]
[1717606297175,0.24829216,71441.0,71440.0,0.97184719]
[1717606297375,0.24829216,71441.0,71440.0,1.25180219]
[1717606299645,0.24829216,71441.0,71440.0,1.25741102]
[1717606299843,0.24829216,71441.0,71440.0,1.29901477]
[1717606300692,0.24829216,71441.0,71440.0,1.25180219]
[1717606301119,0.24829216,71441.0,71440.0,1.29366575]
[1717606301326,0.24829216,71441.0,71440.0,1.25180219]
[1717606301771,0.24829216,71441.0,71440.0,1.07045941]
[1717606302032,0.24829216,71441.0,71440.0,1.25180219]
[1717606302473,0.24829216,71441.0,71440.0,1.25741102]
[1717606303413,0.24829216,71441.0,71440.0,1.3202437]
[1717606303940,0.24829216,71441.0,71440.0,1.23990692]
[1717606304162,0.24829216,71441.0,71440.0,1.17707424]
[1717606304377,0.24829216,71441.0,71440.0,1.2608699]
[1717606304795,0.24829216,71441.0,71440.0,1.17707424]
[1717606305622,0.24829216,71441.0,71440.0,1.27620999]
[1717606305858,0.24829216,71441.0,71440.0,0.92855499]
[1717606306068,0.24829216,71441.0,71440.0,1.27620999]
[1717606307417,0.24829216,71441.0,71440.0,1.20850999]
[1717606307636,0.24829216,71441.0,71440.0,1.27620999]
[1717606307855,0.24829216,71441.0,71440.0,1.17146541]
[1717606308389,0.24829216,71441.0,71440.0,1.17707424]
[1717606310875,0.24829216,71441.0,71440.0,1.17146541]
[1717606311074,0.42370456,71441.0,71440.0,0.34385541]
[1717606311493,0.24829216,71441.0,71440.0,0.21318652]
[1717606311696,0.24829216,71441.0,71440.0,0.21319567]
[1717606311921,0.42370456,71441.0,71440.0,0.21319567]
[1717606312577,0.42370456,71441.0,71440.0,0.31319567]
[1717606312803,0.56812349,71441.0,71440.0,0.07254626]
[1717606313033,0.2322,71436.0,71435.0,0.041958]
[1717606313258,0.2322,71436.0,71433.0,0.06293701]
[1717606313259,0.4176124,71435.0,71434.0,0.041958]
[1717606313539,0.4176124,71435.0,71427.0,0.10489501]
[1717606313540,0.4109124,71428.0,71427.0,0.10489501]
[1717606313772,0.4109124,71428.0,71419.0,0.15118878]
[1717606313773,0.1596,71422.0,71419.0,0.15118878]
[1717606314026,0.1754124,71420.0,71419.0,0.14069041]
[1717606314267,0.17479089,71420.0,71419.0,0.14069041]
[1717606314700,0.1596,71422.0,71414.0,0.01670739]
[1717606314701,0.1596,71422.0,71421.0,0.00067241]
[1717606314930,0.1496,71422.0,71421.0,0.14068641]
[1717606315823,0.1496,71422.0,71421.0,0.14691675]
[1717606316243,0.0752,71438.0,71423.0,0.00623034]
[1717606316489,0.21961893,71438.0,71437.0,0.00067241]
[1717606316707,0.39064016,71438.0,71437.0,0.00067241]
[1717606316957,0.39440982,71438.0,71437.0,0.00067241]
[1717606317396,0.39440982,71438.0,71427.0,0.1694]
[1717606317397,0.17479089,71435.0,71434.0,0.00067241]
[1717606317622,0.17479089,71435.0,71434.0,0.14066141]
[1717606318132,0.33349089,71435.0,71434.0,0.14066141]
[1717606319486,0.1587,71435.0,71434.0,0.14066141]
[1717606320118,0.32972123,71435.0,71434.0,0.14066141]
[1717606320248,0.1587,71435.0,71434.0,0.14066141]
[1717606320682,0.1587,71435.0,71434.0,0.69003941]
[1717606320891,0.0752,71438.0,71437.0,0.14065541]
[1717606321149,0.1547,71440.0,71439.0,0.139979]
[1717606321343,0.1547,71440.0,71439.0,0.14065141]
[1717606321547,0.32572123,71440.0,71439.0,0.14065141]
[1717606321754,0.32572123,71440.0,71434.0,0.549378]
[1717606321755,0.00599216,71441.0,71440.0,0.24687975]
[1717606321970,0.00599216,71441.0,71440.0,1.48712352]
[1717606322579,0.00599216,71441.0,71440.0,1.54985164]
[1717606322783,0.00599216,71441.0,71440.0,1.63154245]
[1717606323004,1.6e-07,71441.0,71440.0,1.70407033]
[1717606323231,1.6e-07,71441.0,71440.0,1.72592981]
[1717606324255,1.6e-07,71441.0,71440.0,1.74892981]
[1717606327273,0.00949301,71456.0,71448.0,0.37517011]
[1717606327503,0.00949301,71456.0,71448.0,1.7789523]
[1717606328316,0.00949301,71456.0,71448.0,1.71627862]
[1717606328551,0.00949301,71456.0,71448.0,1.7789523]
[1717606328726,0.00949301,71456.0,71455.0,0.83562152]
[1717606328957,0.00949301,71456.0,71455.0,1.10502152]
[1717606329163,0.00949301,71456.0,71455.0,1.15905351]
[1717606329333,0.00949301,71456.0,71455.0,1.71234721]
[1717606329581,0.004,71459.0,71458.0,0.93491911]
[1717606329813,0.00949301,71461.0,71460.0,0.13588152]
[1717606330022,1e-08,71461.0,71460.0,1.34879045]
[1717606330293,1e-08,71461.0,71460.0,1.70118642]
[1717606330711,1e-08,71461.0,71460.0,1.80545416]
[1717606331133,1e-08,71461.0,71460.0,1.72303779]
[1717606331412,1e-08,71461.0,71460.0,1.82725425]
[1717606331606,1e-08,71461.0,71460.0,2.17346242]
[1717606332019,1e-08,71461.0,71460.0,2.025913]
[1717606332251,1e-08,71461.0,71460.0,2.195313]
[1717606332518,1e-08,71461.0,71460.0,1.82836107]
[1717606332730,1e-08,71461.0,71460.0,1.72418642]
[1717606333364,1e-08,71461.0,71460.0,1.78666328]
[1717606333862,1e-08,71461.0,71460.0,1.72418642]
[1717606334585,1e-08,71461.0,71460.0,1.76582307]
[1717606335217,1e-08,71461.0,71460.0,1.76581761]
[1717606335431,1e-08,71461.0,71460.0,1.77533261]
[1717606335669,1e-08,71461.0,71460.0,1.73370142]
[1717606336979,1e-08,71461.0,71460.0,1.90310142]
[1717606337397,1e-08,71461.0,71460.0,1.94471178]
[1717606337604,0.00027721,71469.0,71468.0,0.93549352]
[1717606337816,0.00027721,71469.0,71468.0,1.42183242]
[1717606338017,0.00027721,71469.0,71468.0,1.70167742]
[1717606339368,0.00027721,71469.0,71468.0,1.50329865]
[1717606339571,0.00027721,71469.0,71468.0,1.67269865]
[1717606340239,0.00027721,71469.0,71468.0,0.60727967]
[1717606340455,0.00027721,71469.0,71468.0,0.22676226]
[1717606340456,0.4138681,71469.0,71468.0,0.22676226]
[1717606340662,0.4138681,71469.0,71468.0,0.15424229]
[1717606340892,0.4138681,71469.0,71468.0,0.1549147]
[1717606341325,0.23907721,71469.0,71468.0,0.1549147]
[1717606341741,0.23907721,71469.0,71468.0,0.4347597]
[1717606342569,0.23907721,71469.0,71468.0,0.72083504]
[1717606342775,0.15607721,71469.0,71468.0,0.89023504]
[1717606342984,0.00027721,71469.0,71468.0,1.50017868]
[1717606343187,0.00027721,71469.0,71468.0,1.60017868]
[1717606343698,0.00027721,71469.0,71468.0,1.50017868]
[1717606343949,0.00027721,71469.0,71468.0,1.60017868]
[1717606344456,0.00027721,71469.0,71468.0,1.21410334]
[1717606344653,0.00027721,71469.0,71468.0,1.06968441]
[1717606344857,0.00027721,71469.0,71468.0,0.96968441]
[1717606345067,0.00027721,71469.0,71468.0,0.52043941]
[1717606345264,0.23207721,71469.0,71468.0,0.80028441]
[1717606345691,0.23207721,71469.0,71468.0,0.80651475]
[1717606345692,0.00027721,71469.0,71468.0,0.80651475]
[1717606346101,0.00027721,71469.0,71468.0,1.05093368]
[1717606346325,0.00027721,71469.0,71468.0,1.33077868]
[1717606346710,0.00027721,71469.0,71468.0,1.35975745]
[1717606347276,0.00027721,71469.0,71468.0,1.45975745]
[1717606347735,0.00027721,71469.0,71468.0,1.43077868]
[1717606347938,0.00027721,71469.0,71468.0,1.45975745]
[1717606348735,0.00951501,71473.0,71472.0,1.21528252]
[1717606348937,0.00951501,71473.0,71472.0,1.64342174]
[1717606351943,0.00951501,71473.0,71472.0,1.66642174]
[1717606352941,1e-08,71473.0,71472.0,1.66642174]
[1717606353406,1e-08,71473.0,71472.0,1.64342174]
[1717606354092,1e-08,71473.0,71472.0,1.62910145]
[1717606354326,1e-08,71473.0,71472.0,1.60012268]
[1717606354556,1e-08,71473.0,71472.0,1.42449234]
[1717606354786,1e-08,71473.0,71472.0,1.60012268]
[1717606355010,1e-08,71473.0,71472.0,1.6168031]
[1717606355496,1e-08,71473.0,71472.0,1.61057276]
[1717606355725,1e-08,71473.0,71472.0,1.6168031]
[1717606358279,1e-08,71473.0,71472.0,1.64578187]
[1717606358681,0.2426,71472.0,71459.0,0.04150249]
[1717606358887,0.41419089,71457.0,71456.0,0.15426629]
[1717606359240,0.41419089,71457.0,71456.0,0.01432029]
[1717606359241,0.42419089,71457.0,71456.0,0.01432029]
[1717606359460,0.42419089,71457.0,71447.0,0.139962]
[1717606359461,0.25089089,71448.0,71447.0,0.139962]
[1717606359672,0.41419089,71448.0,71447.0,0.139962]
[1717606360356,0.17479089,71446.0,71445.0,0.01432029]
[1717606362503,0.32789089,71446.0,71445.0,0.01432029]
[1717606362947,0.55730982,71446.0,71445.0,0.01432029]
[1717606363148,0.55730982,71446.0,71434.0,0.139988]
[1717606363149,0.34059089,71435.0,71434.0,0.139988]
[1717606363366,0.34059089,71435.0,71431.0,0.002]
[1717606363367,0.17479089,71432.0,71431.0,0.002]
[1717606363803,0.17479089,71433.0,71431.0,0.002]
[1717606364016,0.17479089,71433.0,71432.0,0.00067241]
[1717606364165,0.17447759,71433.0,71432.0,0.00067241]
[1717606364581,0.17447759,71433.0,71432.0,0.14066541]
[1717606364978,0.17447759,71433.0,71432.0,0.139993]
[1717606365181,0.17447759,71433.0,71432.0,0.239993]
[1717606365506,0.17447759,71433.0,71432.0,0.24066541]
[1717606366125,0.17447759,71433.0,71432.0,0.239993]
[1717606366949,0.17447759,71433.0,71432.0,0.24066541]
[1717606367542,0.2428,71435.0,71434.0,0.00067241]
[1717606367723,0.17447759,71443.0,71431.0,0.002]
[1717606367724,0.15,71440.0,71439.0,0.00067241]
[1717606367925,0.15,71440.0,71439.0,0.14065141]
[1717606368369,0.32447759,71440.0,71439.0,0.14065141]
[1717606369061,0.32447759,71440.0,71439.0,0.139979]
[1717606370376,0.32447759,71440.0,71439.0,0.14065141]
[1717606370601,0.32447759,71440.0,71439.0,0.139979]
[1717606371709,0.32447759,71440.0,71439.0,0.14065141]
[1717606371942,0.32447759,71440.0,71439.0,0.139979]
[1717606373396,0.32447759,71440.0,71431.0,0.00267241]
[1717606373397,0.17447759,71432.0,71431.0,0.00267241]
[1717606373617,0.17447759,71432.0,71431.0,0.14266741]
[1717606373800,0.17447759,71432.0,71431.0,0.24266741]
[1717606378472,0.17447759,71433.0,71432.0,0.14066541]
[1717606378680,0.17447759,71433.0,71432.0,0.24066541]
[1717606379813,0.17447759,71434.0,71433.0,0.139991]
[1717606380023,0.17447759,71434.0,71433.0,0.24066341]
[1717606383676,0.17447759,71434.0,71433.0,0.1]
[1717606383906,0.17447759,71432.0,71431.0,0.102]
[1717606384136,0.33677759,71432.0,71431.0,0.102]
[1717606384314,0.33677759,71432.0,71431.0,0.002]
[1717606384315,0.57378322,71432.0,71431.0,0.002]
[1717606384485,0.71377622,71432.0,71431.0,0.002]
[1717606384916,0.73677622,71432.0,71431.0,0.002]
[1717606385149,0.01314306,71422.0,71421.0,0.004]
[1717606385370,0.42936429,71422.0,71421.0,0.004]
[1717606387843,0.57378322,71422.0,71421.0,0.004]
[1717606388665,0.71379522,71422.0,71421.0,0.004]
[1717606388869,0.71379522,71422.0,71420.0,0.00086]
[1717606388870,0.32417829,71421.0,71420.0,0.00086]
[1717606389097,0.80322546,71421.0,71420.0,0.00086]
[1717606389300,1.00322546,71421.0,71420.0,0.00086]
[1717606389499,1.45265446,71421.0,71420.0,0.00086]
[1717606389661,0.97262546,71421.0,71420.0,0.00086]
[1717606389937,0.32419629,71412.0,71408.0,0.00086]
[1717606390079,0.73101522,71412.0,71408.0,0.00086]
[1717606392829,1.01107922,71412.0,71408.0,0.00086]
[1717606393029,1.21107922,71412.0,71408.0,0.00086]
[1717606393451,0.32420229,71409.0,71408.0,0.00086]
[1717606393662,0.93922122,71409.0,71408.0,0.00086]
[1717606393860,0.73922122,71409.0,71408.0,0.00086]
[1717606395328,0.73905273,71409.0,71408.0,0.00086]
[1717606398924,0.73873502,71409.0,71408.0,0.00086]
[1717606400610,0.72873502,71409.0,71408.0,0.00086]
[1717606400809,0.73873502,71409.0,71408.0,0.00086]
[1717606401583,0.72873502,71409.0,71408.0,0.00086]
[1717606401784,0.73873502,71409.0,71408.0,0.00086]
[1717606403681,0.58869702,71409.0,71408.0,0.00086]
[1717606403893,0.48309702,71409.0,71408.0,0.00153241]
[1717606404099,0.48309702,71409.0,71408.0,0.00086]
[1717606404307,0.48278372,71409.0,71408.0,0.00086]
[1717606408791,0.48278372,71409.0,71408.0,0.00153241]
[1717606408991,0.31778372,71409.0,71408.0,0.00153241]
[1717606410895,0.31778372,71409.0,71408.0,0.00086]
[1717606415277,0.31678372,71409.0,71408.0,0.00086]
[1717606416378,0.32678372,71409.0,71408.0,0.00086]
[1717606416621,0.31678372,71409.0,71408.0,0.00086]
[1717606416866,0.32678372,71409.0,71408.0,0.00086]
[1717606417093,0.72362172,71409.0,71408.0,0.00086]
[1717606417521,1.20369772,71409.0,71408.0,0.00086]
[1717606417963,0.80252079,71402.0,71401.0,0.004]
[1717606418173,0.32243579,71392.0,71389.0,0.01050061]
[1717606418387,0.32243579,71392.0,71384.0,0.009493]
[1717606418388,0.70675472,71392.0,71384.0,0.009493]
[1717606418587,0.72975472,71392.0,71384.0,0.009493]
[1717606419228,0.77771306,71392.0,71384.0,0.009493]
[1717606419430,0.15305957,71385.0,71384.0,0.009493]
[1717606419632,0.64996872,71385.0,71384.0,0.009493]
[1717606420271,0.32245579,71382.0,71381.0,0.004]
[1717606420477,0.46687472,71382.0,71381.0,0.004]
[1717606420889,0.48987472,71382.0,71381.0,0.004]
[1717606421094,0.64997472,71382.0,71381.0,0.004]
[1717606424700,0.84997472,71382.0,71381.0,0.004]
[1717606425039,0.64997472,71382.0,71381.0,0.004]
[1717606425474,0.33978372,71382.0,71381.0,0.004]
[1717606425678,0.31678372,71382.0,71381.0,0.004]
[1717606427061,0.16939022,71384.0,71381.0,0.00467241]
[1717606427263,0.17236479,71384.0,71383.0,0.00067241]
[1717606427460,0.16939022,71384.0,71383.0,0.00067241]
[1717606427695,0.16939022,71384.0,71383.0,0.14076141]
[1717606427894,0.16939022,71393.0,71392.0,0.00067241]
[1717606428168,0.16939022,71396.0,71394.0,0.14073941]
[1717606428303,0.14441893,71406.0,71392.0,0.075]
[1717606428304,0.16939022,71399.0,71398.0,0.00067241]
[1717606428503,0.00297457,71401.0,71399.0,0.00067241]
[1717606428504,0.16939022,71401.0,71399.0,0.00067241]
[1717606428733,0.16939022,71401.0,71400.0,0.00067241]
[1717606428929,0.1636,71412.0,71403.0,0.14005]
[1717606428930,0.16939022,71404.0,71403.0,0.14005]
[1717606429181,0.17236479,71407.0,71406.0,0.00067241]
[1717606429444,0.16939022,71403.0,71402.0,0.14072241]
[1717606429647,0.17236479,71403.0,71402.0,0.14072241]
[1717606430052,0.16939022,71403.0,71402.0,0.14072241]
[1717606431292,0.17236479,71407.0,71406.0,0.14071641]
[1717606431642,0.16939022,71407.0,71406.0,0.14071641]
[1717606431895,0.16939022,71408.0,71407.0,0.140042]
[1717606432086,0.00383457,71409.0,71408.0,0.14071241]
[1717606432087,0.00086,71409.0,71408.0,0.14071241]
[1717606433480,0.17322479,71409.0,71408.0,0.14071241]
[1717606433686,0.00086,71409.0,71408.0,0.14071241]
[1717606434482,0.17322479,71409.0,71408.0,0.14071241]
[1717606435655,0.17322479,71409.0,71408.0,0.14004]
[1717606436754,0.17322479,71409.0,71408.0,0.14071241]
[1717606439820,0.17322479,71409.0,71408.0,0.14004]
[1717606440024,0.17236479,71401.0,71400.0,0.140056]
[1717606440292,0.17236479,71401.0,71400.0,0.1]
[1717606440577,0.17236479,71396.0,71395.0,0.01432029]
[1717606440778,0.31678372,71396.0,71395.0,0.01432029]
[1717606441736,0.32678372,71396.0,71395.0,0.01432029]
[1717606441944,0.43058372,71396.0,71395.0,0.01432029]
[1717606442155,0.42058372,71396.0,71395.0,0.01432029]
[1717606442372,0.33978372,71396.0,71395.0,0.15438529]
[1717606443056,0.31678372,71396.0,71395.0,0.15438529]
[1717606443282,0.31678372,71396.0,71395.0,0.1550577]
[1717606443283,0.17236479,71396.0,71395.0,0.1550577]
[1717606443504,0.17236479,71399.0,71398.0,0.00067241]
[1717606443720,0.31678372,71399.0,71398.0,0.00067241]
[1717606443928,0.31678372,71399.0,71398.0,0.14073141]
[1717606444348,0.31380915,71399.0,71398.0,0.14073141]
[1717606444555,0.31678372,71399.0,71398.0,0.14073141]
[1717606445383,0.17236479,71399.0,71398.0,0.14073141]
[1717606445593,0.16939022,71401.0,71400.0,0.14072841]
[1717606445814,0.17236479,71405.0,71404.0,0.14072041]
[1717606446647,0.16939022,71405.0,71404.0,0.14072041]
[1717606446874,0.16939022,71405.0,71398.0,0.0985]
[1717606446875,0.16939022,71407.0,71406.0,0.00067241]
[1717606447100,0.31678372,71407.0,71406.0,0.00067241]
[1717606448384,0.00086,71409.0,71406.0,0.00067241]
[1717606448385,0.17025022,71409.0,71408.0,0.14071241]
[1717606448602,0.17322479,71409.0,71408.0,0.14071241]
[1717606448816,0.17025022,71409.0,71408.0,0.14071241]
[1717606449023,0.00086,71409.0,71408.0,0.14071241]
[1717606449668,0.17322479,71409.0,71408.0,0.14071241]
[1717606450357,0.00086,71409.0,71408.0,0.14071241]
[1717606450826,0.00086,71409.0,71408.0,0.42079241]
[1717606451057,0.17025022,71409.0,71408.0,0.14071241]
[1717606451690,0.16323022,71410.0,71409.0,0.140038]
[1717606451915,0.16323022,71410.0,71409.0,0.14071041]
[1717606452193,0.16620479,71410.0,71409.0,0.14071041]
[1717606452573,0.16620479,71410.0,71409.0,0.140038]
[1717606453553,0.16620479,71407.0,71406.0,0.00067241]
[1717606453749,0.16620479,71407.0,71406.0,0.14071641]
[1717606453972,0.16620479,71407.0,71406.0,0.24071641]
[1717606454409,0.16620479,71407.0,71406.0,0.1]
[1717606455095,0.16620479,71407.0,71406.0,0.00067241]
[1717606455305,0.16323022,71403.0,71402.0,0.14072441]
[1717606455546,0.16323022,71403.0,71402.0,0.24072441]
[1717606456424,0.16620479,71403.0,71402.0,0.24072441]
[1717606460650,0.31062372,71403.0,71402.0,0.240052]
[1717606460854,0.16620479,71395.0,71394.0,0.0001686]
[1717606461753,0.16620479,71399.0,71398.0,0.00067241]
[1717606461950,0.16323022,71399.0,71398.0,0.14073141]
[1717606462165,0.16323022,71401.0,71400.0,0.00067241]
[1717606462562,0.16323022,71407.0,71406.0,0.00067241]
[1717606462785,0.16323022,71410.0,71409.0,0.00067241]
[1717606462991,0.31062372,71410.0,71409.0,0.00067241]
[1717606464488,0.16620479,71408.0,71406.0,0.00067241]
[1717606464690,0.16620479,71408.0,71404.0,0.140047]
[1717606464691,0.16620479,71405.0,71404.0,0.140047]
[1717606464900,0.16620479,71405.0,71404.0,0.14071941]
[1717606469122,0.16620479,71405.0,71404.0,0.140047]
[1717606469349,0.16620479,71405.0,71404.0,0.14071941]
[1717606470420,0.16620479,71405.0,71404.0,0.140047]
[1717606470653,0.16620479,71401.0,71396.0,0.15702049]
[1717606470875,0.16620479,71398.0,71397.0,0.240061]
[1717606471985,0.16620479,71398.0,71397.0,0.24073341]
[1717606474801,0.16620479,71398.0,71397.0,0.240061]
[1717606475576,0.16620479,71398.0,71397.0,0.1]
[1717606475964,0.16620479,71397.0,71396.0,0.25438229]
[1717606476167,0.16620479,71397.0,71396.0,0.2550547]
[1717606477554,0.16620479,71397.0,71396.0,0.25438229]
[1717606478694,0.16620479,71397.0,71396.0,0.2550547]
[1717606480132,0.16620479,71397.0,71396.0,0.24073441]
[1717606481970,0.16620479,71399.0,71398.0,0.14073141]
[1717606482177,0.16620479,71399.0,71398.0,0.24073141]
[1717606482377,0.16620479,71391.0,71390.0,0.18198114]
[1717606482579,0.16620479,71391.0,71390.0,0.14074741]
[1717606482787,0.16620479,71391.0,71390.0,0.15125035]
[1717606483222,0.16620479,71393.0,71392.0,0.00067241]
[1717606483449,0.16620479,71393.0,71392.0,0.14074341]
[1717606483848,0.16620479,71393.0,71392.0,0.25124635]
[1717606484405,0.16620479,71393.0,71392.0,0.24074341]
[1717606485527,0.16603619,71393.0,71392.0,0.24074341]
[1717606488754,0.16603619,71393.0,71392.0,0.240071]
[1717606489636,0.41123619,71393.0,71392.0,0.1]
[1717606489843,0.16603619,71391.0,71390.0,0.1]
[1717606490056,0.16603619,71388.0,71387.0,0.01050294]
[1717606490286,0.16603619,71388.0,71387.0,0.140081]
[1717606490507,0.2452,71393.0,71385.0,0.1]
[1717606490508,0.16603619,71386.0,71385.0,0.1]
[1717606490732,0.16603619,71385.0,71384.0,0.141033]
[1717606490944,0.16603619,71385.0,71384.0,0.24170541]
[1717606491939,0.16603619,71385.0,71384.0,0.10161841]
[1717606492374,0.16603619,71385.0,71384.0,0.24170541]
[1717606498794,0.16323022,71386.0,71385.0,0.14075741]
[1717606499271,0.16603619,71386.0,71385.0,0.24075741]